Cogmind - Beta 11 X7 *** ADVENTURER MODE // 2021.09.14 @ 15:11:24 // Winter2019/RPGLIKE Player: Salamander Result: Destroyed by D-53 Grenadier with Mini Grenade Launcher Performance ------------- Evolutions (0) 0 Regions Visited (2) 400 Robots Destroyed (19) 95 Value Destroyed (462) 462 Prototype IDs (2) 40 Alien Tech Used (0) 0 Bonus (0) 0 TOTAL SCORE: 997 Bonus ------- None Cogmind --------- Core Integrity 0/750 Matter 222/300 Energy 10/160 System Corruption 0% Temperature Cool (0) Movement Treading (160) Location -10/Mines Parts ------- > --- POWER (1) -------- Light Nuclear Core > --- PROPULSION (2) --- Light Treads Light Treads > --- UTILITY (3) ------ Improved Heat Sink Improved Terrain Scanner Shield Generator > --- WEAPON (2) ------- Assault Rifle Light Assault Rifle > --- INVENTORY (2) ---- Tractor Beam Assault Rifle Peak State ------------ > --- POWER ------------ Light Nuclear Core > --- PROPULSION ------- Light Treads Light Treads > --- UTILITY ---------- Improved Heat Sink Improved Terrain Scanner Shield Generator > --- WEAPON ----------- Assault Rifle Light Assault Rifle > --- INVENTORY -------- Tractor Beam Medium Laser [Rating: 15] Favorites ----------- Power Light Nuclear Core Engine Ion Engine Power Core Light Nuclear Core Propulsion Light Treads Treads Light Treads Utility Improved Terrain Scanner Device Improved Terrain Scanner Weapon Light Assault Rifle Energy Gun Medium Laser Ballistic Gun Light Assault Rifle Build | -11 -10 -10 ------- Run | Scr Mat Min Slots Evolved 4 | 3 1 . Power . | . . . Propulsion 1 | 1 . . Utility 2 | 1 1 . Weapon 1 | 1 . . Parts Attached 12 | 6 6 . Power 2 | 1 1 . Engine 1 | 1 . . Core 1 | . 1 . Reactor . | . . . Propulsion 3 | 2 1 . Treads 3 | 2 1 . Leg . | . . . Wheel . | . . . Hover . | . . . Flight . | . . . Utility 3 | 1 2 . Device 3 | 1 2 . Storage . | . . . Processor . | . . . Hackware . | . . . Protection . | . . . Artifact . | . . . Weapon 4 | 2 2 . Energy Gun 1 | 1 . . Energy Cannon . | . . . Ballistic Gun 3 | 1 2 . Ballistic Cannon . | . . . Launcher . | . . . Special Weapon . | . . . Impact Weapon . | . . . Slashing Weapon . | . . . Piercing Weapon . | . . . Special Melee Weapon . | . . . Unidentified Prototypes . | . . . Parts Lost . | . . . Power . | . . . Propulsion . | . . . Utility . | . . . Weapon . | . . . Highest Loss Streak . | . . . Average Slot Usage (%) 97 | . 97 100 Engine 1 | . 1 . Core 12 | . 12 12 Treads 26 | . 27 25 Device 29 | . 27 37 Energy Gun 4 | . 5 . Ballistic Gun 22 | . 21 25 Naked Turns . | . . . Heaviest Build 12 | 9 12 12 Greatest Support 40 | 40 40 40 Greatest Overweight (x) . | . . . Average Overweight (x) . | . . . Largest Inventory Capacity 2 | 2 2 2 Average Capacity 2 | 2 2 2 Most Carried 2 | 1 2 2 Average Carried 1 | . 1 2 Final Capacity 2 | 2 2 2 Final Carried 2 | 1 2 2 Class Distribution -------------------- 100% | Skirmisher Dominant Class ---------------- Skirmisher | -10/Materials Skirmisher | -10/Mines Resources | -11 -10 -10 ----------- Run | Scr Mat Min Matter Collected 392 | 268 112 12 Remotely . | . . . Salvage Created 998 | 114 796 88 Parts 29 | 4 25 . Haulers Intercepted 2 | . 2 . Recyclers Shooed 1 | . 1 . Parts Field Recycled . | . . . Retrieved Matter . | . . . Parts Self-Destructed . | . . . Prevented . | . . . Kills | -11 -10 -10 ------- Run | Scr Mat Min Combat Hostiles Destroyed 18 | . 11 7 Guns 18 | . 11 7 Classes Destroyed 6 | 2 3 1 Tunneler 2 | 2 . . Hauler 2 | . 2 . Recycler 2 | 1 1 . Watcher 2 | . 2 . Grunt 11 | . 11 . Assembled 7 | . . 7 Best Kill Streak 7 | 2 3 7 Combat Bots Only 7 | . 3 7 Max Kills in Single Turn 1 | 1 1 1 Gunslinging . | . . . Exploded . | . . . Melee . | . . . Uniques/NPCs Destroyed . | . . . Combat | -11 -10 -10 -------- Run | Scr Mat Min Damage Taken 1146 | . 213 933 Core 926 | . 167 759 Absorbed by Shields 100 | . . 100 Redirected to Core 740 | . 149 591 Core Remaining (%) 100 | 100 . . Volleys Fired 63 | 8 40 15 Largest 2 | 2 2 2 Hottest 70 | 70 70 40 Shots Fired 122 | 16 76 30 Gun 122 | 16 76 30 Cannon . | . . . Launcher . | . . . Special . | . . . Kinetic 92 | 8 54 30 Thermal 30 | 8 22 . Explosive . | . . . Electromagnetic . | . . . Robot Hit Streak 43 | 15 43 29 Robot Miss Streak 1 | . 1 1 Penetration Max . | . . . Secondary Targets 6 | . 2 4 Max Gunslinging Chain 1 | . 1 1 Shots Hit Robots 111 | 15 67 29 Core Hits 56 | 5 32 19 Critical Kills . | . . . Critical Parts Destroyed . | . . . Critical Strikes 1 | . 1 . Burn 1 | . 1 . Melee Attacks . | . . . Impact . | . . . Slashing . | . . . Piercing . | . . . Sneak Attacks . | . . . Combat Hostiles . | . . . Follow-up Attacks . | . . . Damage Inflicted 1209 | 153 754 302 Guns 1209 | 153 754 302 Cannons . | . . . Explosions . | . . . Melee . | . . . Ramming . | . . . Kinetic 811 | 53 456 302 Thermal 398 | 100 298 . Explosive . | . . . Electromagnetic . | . . . Impact . | . . . Slashing . | . . . Piercing . | . . . Highest Corruption . | . . . Average Corruption . | . . . Corruption Purged . | . . . Overload Shots . | . . . Overflow Damage . | . . . Projectiles . | . . . Explosions . | . . . Melee . | . . . Knockbacks . | . . . Impact . | . . . Kinetic . | . . . Secondary . | . . . Self-Inflicted Damage . | . . . Shots . | . . . Rammed . | . . . Targets Rammed . | . . . Kicked . | . . . Crushed . | . . . Highest Temperature 99 | 36 99 . Average Temperature 34 | 15 43 . Received Heat Transfer 393 | . 183 210 Siege Activations . | . . . Robots Corrupted . | . . . Combat Hostiles . | . . . Parts Fried . | . . . Impact Corruptions . | . . . Robots Melted . | . . . Combat Hostiles . | . . . Parts Melted 4 | 1 3 . Heat Transferred 1184 | 296 888 . Parts Sabotaged . | . . . Parts Stolen . | . . . Parts Stripped . | . . . Power Chain Reactions . | . . . Missiles Intercepted . | . . . Alert | -11 -10 -10 ------- Run | Scr Mat Min Peak Influence 270 | 15 270 62 Initial 62 | . 8 62 Average 122 | 7 153 62 Maximum Alert Level 1 | . 1 . Low Security (%) 82 | 100 76 100 Level 1 17 | . 23 . Level 2 . | . . . Level 3 . | . . . Level 4 . | . . . Level 5 . | . . . High Security . | . . . Max Security . | . . . Squads Dispatched 3 | . 3 . Investigation 3 | . 3 . Extermination . | . . . Reinforcement . | . . . Assault . | . . . Garrison . | . . . Intercept . | . . . Construction Impeded . | . . . Haulers Reinforced . | . . . Active Scanning Responses . | . . . Cargo Convoy Interrupts . | . . . Stealth | -11 -10 -10 --------- Run | Scr Mat Min Distress Signals 1 | . 1 . Communications Jammed . | . . . Distress Signals . | . . . Times Spotted 35 | . 16 19 Peak Tracking Total 19 | . 3 19 Tactical Retreats 2 | . . 2 Traps | -11 -10 -10 ------- Run | Scr Mat Min Traps Triggered 2 | . 2 . Indirectly . | . . . Trap Hack Attempts . | . . . Triggered . | . . . Disarmed . | . . . Reprogrammed . | . . . Reused . | . . . Traps Extracted . | . . . Installed . | . . . Triggered . | . . . Machines | -11 -10 -10 ---------- Run | Scr Mat Min Machines Disabled . | . . . Max in Single Turn . | . . . Machines Sabotaged . | . . . Garrisons Compromised . | . . . Overloaded Fab Kills . | . . . Fab Network Shutdowns . | . . . Hacking | -11 -10 -10 --------- Run | Scr Mat Min Machines Accessed 8 | . 8 . Terminals 7 | . 7 . Fabricators . | . . . Repair Stations . | . . . Recycling Units 1 | . 1 . Scanalyzers . | . . . Garrison Access . | . . . Total Hacks 21 | . 21 . Successful 14 | . 14 . Failed 7 | . 7 . Catastrophic 1 | . 1 . Database Lockouts . | . . . Manual 14 | . 14 . Terminals 20 | . 20 . Fabricators . | . . . Repair Stations . | . . . Recycling Units 1 | . 1 . Scanalyzers . | . . . Garrison Access . | . . . Terminal Hacks 8 | . 8 . Robot Analysis 4 | . 4 . Prototype ID Bank 1 | . 1 . Machine Index 1 | . 1 . Alert Level 2 | . 2 . Fabricator Hacks . | . . . Repair Station Hacks . | . . . Recycling Unit Hacks . | . . . Scanalyzer . | . . . Garrison Access Hacks . | . . . Unauthorized Hacks 6 | . 6 . Terminals 5 | . 5 . Track 3 | . 3 . Botnet 2 | . 2 . Fabricators . | . . . Repair Stations . | . . . Recycling Units 1 | . 1 . Tunnel 1 | . 1 . Scanalyzers . | . . . Garrison Access . | . . . Data Cores Recovered . | . . . Used . | . . . Hacking Detections 7 | . 7 . Full Trace Events 2 | . 2 . Feedback Events . | . . . Feedback Blocked . | . . . Robot Schematics Acquired . | . . . Robots Built . | . . . Matter . | . . . Time . | . . . Total Robot Build Rating . | . . . Part Schematics Acquired . | . . . Parts Built . | . . . Matter . | . . . Time . | . . . Total Part Build Rating . | . . . Parts Repaired . | . . . Time . | . . . Parts Recycled . | . . . Recycled Matter . | . . . Retrieved Matter . | . . . Retrieved Components . | . . . Parts Scanalyzed . | . . . Part Schematics Acquired . | . . . Parts Damaged . | . . . Bothacking | -11 -10 -10 ------------ Run | Scr Mat Min Used RIF Installer . | . . . Robots Hacked . | . . . Non-combat . | . . . Combat . | . . . Robot Hacks Applied . | . . . Relay Couplers Released . | . . . Robots Rewired . | . . . Allies Hacked . | . . . Hacks Repelled . | . . . Allies | -11 -10 -10 -------- Run | Scr Mat Min Total Allies . | . . . Largest Group . | . . . Highest-Rated Group . | . . . Highest-Rated Ally . | . . . Total Orders . | . . . Ally Attacks . | . . . Total Damage . | . . . Kills . | . . . Allies Corrupted . | . . . Allies Melted . | . . . Intel | -11 -10 -10 ------- Run | Scr Mat Min Robot Analysis Total 4 | . 4 . Derelict Logs Recovered . | . . . Drone Launches . | . . . Drone Recoveries . | . . . Exploration | -11 -10 -10 ------------- Run | Scr Mat Min Turns Passed 1099 | 109 785 205 Spaces Moved 549 | 47 399 103 Core 1 | 1 . . Treads 548 | 46 399 103 Legs . | . . . Wheels . | . . . Hover . | . . . Flight . | . . . Fastest Speed 50 | 50 160 160 Average Speed 159 | 157 160 160 Slowest Speed 160 | 160 160 160 Overloaded Moves . | . . . Propulsion Burnouts . | . . . Robots Hopped . | . . . Cave-ins Triggered . | . . . Exploration Rate (%) 36 | 3 81 26 Regions Visited 2 Branch Regions 1 Pre-discovered Areas 1 | . 1 . Known Exits Taken . | . . . Unknown Exits Taken 2 | 1 1 . Scrap Searched 1 | . . 1 Spaces Dug . | . . . Terrain Destroyed . | . . . Melee . | . . . Projectile . | . . . AOE . | . . . Terrain Rammed . | . . . Walls Destroyed . | . . . Machines Disabled . | . . . Actions | -11 -10 -10 --------- Run | Scr Mat Min Total 660 | 65 477 118 Wait 18 | 4 14 . Move 547 | 46 398 103 Hop . | . . . Pick Up 4 | 1 3 . Fast Attach 12 | 6 6 . Attach . | . . . Detach 1 | . 1 . Swap . | . . . Drop 4 | . 4 . Fire 63 | 8 40 15 Melee . | . . . Ram . | . . . Kick . | . . . Crush . | . . . Escape Stasis . | . . . Rewire . | . . . Trap . | . . . Miscellaneous 11 | . 11 . Route ------- -11/Scrapyard -10/Materials (discovered 4 exits: [*Mat x2] / [*Min x2]) -10/Mines History --------- Turn | Location | Event 1 | -11/Scrapyard | Upgraded with Propulsion slot (x1) 1 | -11/Scrapyard | Upgraded with Utility slot (x1) 1 | -11/Scrapyard | Upgraded with Weapon slot (x1) 14 | -11/Scrapyard | Discovered new exit (range 16) 110 | -11/Scrapyard | Entered Materials 193 | -10/Materials | Discovered new exit (range 14) 309 | -10/Materials | Build established: Skirmisher 395 | -10/Materials | Discovered new exit (range 10) 660 | -10/Materials | Discovered new exit (range 16) 726 | -10/Materials | Reached level 2 749 | -10/Materials | Upgraded with Utility slot (x1) 821 | -10/Materials | Discovered new exit (range 18) 895 | -10/Materials | Entered Mines 1058 | -10/Mines | Assembled infested the area 1082 | -10/Mines | Core integrity fell below 50% 1092 | -10/Mines | Core integrity fell below 20% 1100 | -10/Mines | Destroyed by D-53 Grenadier with Mini Grenade Launcher Last Messages --------------- 01069_ as-37321 destroyed. 01069_ as-64962 destroyed. 01074_ Destroyed Asb. Hover Unit. 01080_ as-22730 destroyed. 01080_ Switching to secondary target: as-59127. 01083_ as-59127 destroyed. 01085_ as-64435 destroyed. 01091_ Destroyed Asb. Hover Unit. 01093_ as-98361 destroyed. 01094_ as-18626 destroyed. 01094_ Switching to secondary target: as-01221. 01097_ as-64500 destroyed. 01097_ as-02812 destroyed. 01097_ as-01339 destroyed. 01099_ as-43208 destroyed. 01099_ as-02533 destroyed. 01099_ as-48606 destroyed. 01099_ as-01221 destroyed. 01099_ as-08088 destroyed. 01099_ Switching to secondary target: D-53 Grenadier. Map ----- +----------------------------------------------------+ | ?????????????????????????????????????????? | | ?????????????????????????????????????????? | | ?????????????????????????????????????????? | | ?????????????????????????????????????????? | | ?????????????????????????????????????????? | | ?????????????????????????????????????????? | | ?????????????????????????????????????????? | | ?????????????????????????????????????????? | | ?????????????????????????????????????????? | | ?????????????????????????????????????????? | | ????????????##?#?#??##???????????????????? | | ??????????? #?##?##???## ????????????????? | | ????????# ####?####??? ??????????????? | | ???????# ? ####?#??#?# ?????????????? | | ?????? ? ?#####? ?? ????????????? | | ??????? "???##?##???#?# ??????????????? | | ??? """ ? ?#??##? ? ?????????????? | | #??? ?""" ?#? ??###??# ?? #??????????? | | #?###? ? #?#?######??? ? ##??????????? | | ?#?##?# ?? #######??#% ####????????? | | ######## ?? #### ##### ?????????? | | ??#####?#? #### dd ####????????? | | ##?############# % #?????????? | | ################ % %%* ##????????? | | ?###############%%%% % % #????????? | | ?###### ##?#?# @% = ??????? | | ??#### ##### ## % #???????? | | #?### #### ##### #### # #????????? | | ?#### ### ############## #????????? | | #?### ## ##############??#????????? | | #### ## ########?# ??#????????? | | ?### ## ## ########## #####?????????? | | ### ### ## ########## ###?#?#???????? | | ## ##?# ########## ###??#?###????? | | ?# ##### ########?#### ###????#####?? | | ## ###### ############# ####?#???##?? | | ## ###?## #?#?######### ###???###?#?#? | | ## ###### #####?### ##?#?###??#?? ? | | ## ##### ######### #####???# ? ? ? | | ## #?## ######### ####??###?????? | | ## #?# ######### ####??##? ?####?# | | ## ### ######## ######### ???#??? | | ### ### #?###?# #### ??###### | | ########### ####### ### #?######??#? | | ###?##?#### ## #### #####? | | #???#??#### #### ####? | | ??##??###?############# ## ##### | | #??###?#?#####?####?### ##### | | ?#######?##??####?###### ### | | ??##??##?#?###??##?#?#?######### ###### | +----------------------------------------------------+ Best States ------------- Heat Dissipation 57 Energy Generation 14 Energy Capacity 250 Matter Stores 300 Matter Capacity 300 Sight Range 18 Terrain Scan Range 16 Terrain Scan Density 210 Resistance: KI 25 Resistance: TH 30 Resistance: EX 20 Resistance: EM 20 Resistance: I 20 Resistance: S 20 Resistance: P 20 Evasion (%) 40 Recoil Reduction 2 Offensive Hacking 10 Item Schematics ----------------- None Robot Schematics ------------------ None Fabricated ------------ Nothing Alien Tech Used ----------------- None Achievements -------------- None Challenges ------------ None RPGLIKE | -11 -10 -10 --------- Run | Scr Mat Min Levels Raised 1 | . 1 . XP Earned 6180 | 4000 1680 500 XP Spent 5455 | 3950 1505 . Upgrades 21 | 13 8 . Propulsion Slot 1 | 1 . . Utility Slot 2 | 1 1 . Weapon Slot 1 | 1 . . Core Integrity 3 | . 3 . Heat Dissipation 3 | 1 2 . Inventory Capacity 2 | 2 . . Sight Range 2 | 2 . . Terrain Scan Density 2 | 1 1 . Ranged Accuracy 2 | 2 . . KI Resistance % 1 | 1 . . TH Resistance % 2 | 1 1 . Protomatter Created 112 | . 79 33 Integrity Restored 229 | . 229 . Core 167 | . 167 . Parts 62 | . 62 . Protomatter Decayed . | . . . Game ------ Seed GravitonPlasmaRegulator Manual? 0 Play Time 00:09:47 Cumulative 128.5 hours Start 2021.09.14 @ 15:02:27 End 2021.09.14 @ 15:11:24 Sessions 1 Manual Loads 0 Difficulty Adventurer Special Mode Winter2019/RPGLIKE Game No. 109 Rogue 14 Adventurer 93 Explorer 2 Win Type - Total 6 Types 3/0/1/0/0/1/0/1/0 Lore% 70 Gallery% 76 Achievement% 69 Wizard Run 0 Options --------- ASCII 0 Keyboard 0 Movement Mouse Keybinds 0 Fullscreen 1 Font 24/Smallcaps Map View 76x50 Tactical HUD 1 Map Filters NONE Filters NONE Steam 1 RUN: c4d9c364-f694-4862-aad3-31771c222c94